bitfinex-derivatives/quotes_SOLF0:USTF0_20250929
["timestamp","ask_amount","ask_price","bid_price","bid_amount"]
[1759144982697,7.94,207.07,206.99,12.05404179]
[1759144982897,9.25177567,207.07,206.97,4.04404179]
[1759144983096,7.94,207.04,206.96,14.31025383]
[1759144983302,1.31177567,207.03,206.96,12.05404179]
[1759144983599,7.94,207.02,206.96,12.05404179]
[1759144984195,7.94,207.02,206.96,13.36581746]
[1759144985198,7.94,207.02,206.96,9.32177567]
[1759144986799,118.7,207.08,206.98,1.31177567]
[1759144986998,7.94,207.07,207.0,1.31177567]
[1759144987597,7.94,207.07,206.99,8.01]
[1759144987795,7.94,207.07,206.99,9.32177567]
[1759144987996,7.94,207.05,206.97,9.70231746]
[1759144988197,7.94,207.05,206.97,1.31177567]
[1759144989700,12.2849,207.05,206.97,1.31177567]
[1759144989901,7.94,207.05,206.97,1.31177567]
[1759144990097,4.3453,207.04,206.97,1.31177567]
[1759144990302,7.94,207.03,206.95,17.71271746]
[1759144990601,7.94,207.03,206.95,16.40094179]
[1759144990798,7.94,207.01,206.94,4.04404179]
[1759144991100,1.31177567,207.0,206.92,93.32011574]
[1759144991298,1.31177567,206.98,206.9,6.5133]
[1759144991498,7.94,206.97,206.9,6.5133]
[1759144992804,7.94,206.94,206.9,6.5133]
[1759144992999,117.52,206.95,206.9,6.5133]
[1759144993198,1.31177567,206.96,206.9,6.5133]
[1759144993402,118.7,206.95,206.9,6.5133]
[1759144993610,7.63,206.93,206.9,6.5133]
[1759144993898,1.31177567,206.94,206.9,6.5133]
[1759144994393,7.63,206.93,206.9,6.5133]
[1759144994596,4.3476,206.92,206.9,6.5133]
[1759144994797,7.63,206.91,206.9,6.5133]
[1759144999400,11.9778,206.91,206.9,6.5133]
[1759145001503,7.63,206.91,206.9,6.5133]
[1759145001804,118.74,206.91,206.9,14.3733]
[1759145001999,118.74,206.91,206.9,6.5133]
[1759145002309,126.37,206.91,206.9,6.5133]
[1759145003302,5.65947567,206.92,206.9,6.5133]
[1759145003504,118.74,206.91,206.9,6.5133]
[1759145003810,126.37,206.91,206.9,6.5133]
[1759145005310,126.37,206.91,206.9,0.0001]
[1759145012106,8.03,206.97,206.9,0.0001]
[1759145012306,118.76,206.96,206.9,0.0001]
[1759145012814,118.76,206.95,206.9,0.0001]
[1759145015616,123.1071,206.95,206.9,0.0001]
[1759145016915,12.3773,206.94,206.9,7.4701]
[1759145017114,8.03,206.93,206.9,7.4701]
[1759145017311,4.3473,206.94,206.9,7.4701]
[1759145017617,12.3773,206.94,206.9,7.4701]
[1759145017914,8.03,206.92,206.9,0.0001]
[1759145018219,8.03,206.91,206.9,0.0001]
[1759145019704,123.0877,206.92,206.9,0.0001]
[1759145019912,131.1177,206.92,206.9,0.0001]
[1759145025122,12.3777,206.92,206.9,0.0001]
[1759145025424,118.74,206.91,206.9,0.0001]
[1759145030939,120.79597497,206.91,206.9,0.0001]
[1759145032938,8.03,206.9,206.81,4.04404179]
[1759145033135,8.03,206.88,206.81,4.04404179]
[1759145033538,8.03,206.85,206.81,4.04404179]
[1759145033738,126.75,206.84,206.81,4.04404179]
[1759145034141,126.75,206.84,206.81,7.68]
[1759145034339,126.75,206.84,206.81,11.72404179]
[1759145035442,118.72,206.84,206.82,11.72404179]
[1759145036236,4.3476,206.92,206.83,7.68]
[1759145036541,38.9,206.91,206.86,4.04404179]
[1759145036846,38.9,206.9,206.87,7.68]
[1759145037140,38.9,206.9,206.86,4.04404179]
[1759145037341,38.9,206.9,206.87,7.68]
[1759145040443,7.9,206.94,206.88,7.68]
[1759145040748,7.9,206.94,206.91,7.68]
[1759145041336,79.08,206.95,206.9,6.10001676]
[1759145041537,0.84977489,206.96,206.91,7.68]
[1759145041744,109.88977489,206.96,206.9,13.78001676]
[1759145042545,109.88977489,206.96,206.94,7.68]
[1759145042751,7.9,207.03,206.95,4.04404179]
[1759145042950,118.72,207.02,206.96,13.78001676]
[1759145043250,351.54,207.04,206.96,13.78001676]
[1759145043456,7.9,207.06,207.0,7.68]
[1759145043749,118.72,207.05,206.99,2.05597497]
[1759145044052,118.72,207.05,206.99,6.10001676]
[1759145044552,118.72,207.05,206.99,2.05597497]
[1759145045550,118.72,207.05,206.99,6.10001676]
[1759145045739,7.9,207.06,206.99,6.10001676]
[1759145045938,44.0446,207.07,207.0,11.72404179]
[1759145046143,12.2449,207.06,207.0,11.72404179]
[1759145047152,67.5852,207.06,206.99,4.04404179]
[1759145047354,75.4852,207.06,206.95,6.10001676]
[1759145047545,4.3457,207.02,206.95,6.10001676]
[1759145047747,7.9,207.01,206.95,6.10001676]
[1759145048348,7.9,207.01,206.94,4.04404179]
[1759145048846,7.9,207.01,206.95,4.04404179]
[1759145049249,118.68,207.02,206.96,7.68]
[1759145049647,118.68,207.03,206.96,11.72404179]
[1759145049848,118.68,207.03,206.97,4.04404179]
[1759145050359,7.9,207.04,206.97,4.04404179]
[1759145053060,7.9,207.04,206.96,16.07064179]
[1759145053358,4.3453,207.03,206.96,7.68]
[1759145053953,4.3459,207.01,206.94,4.04404179]
[1759145054160,4.3459,207.01,206.93,4.04404179]
[1759145054358,4.3459,207.01,206.92,16.50164179]
[1759145054561,4.3459,207.01,206.93,4.04404179]
[1759145054762,7.77,207.02,206.93,4.04404179]
[1759145054953,7.77,207.02,206.94,8.11]
[1759145055153,7.77,207.02,206.94,12.15404179]
[1759145055757,7.77,207.02,206.94,8.11]
[1759145057361,7.77,207.02,206.94,12.457]
[1759145057759,7.77,207.02,206.94,16.50104179]
[1759145057962,7.77,207.02,206.9,16.50204179]
[1759145058262,2.05597497,206.99,206.9,12.15404179]
[1759145058460,7.77,206.98,206.9,12.15404179]
[1759145060967,12.1165,206.98,206.9,12.15404179]
[1759145063165,4.3459,207.0,206.91,4.04404179]
[1759145063372,4.3459,207.0,206.92,12.15404179]
[1759145064173,12.1156,207.02,206.93,11.61404179]
[1759145064468,12.1156,207.02,206.94,7.57]
[1759145066172,4.3459,207.01,206.94,7.57]
[1759145068775,7.77,207.02,206.94,7.57]
[1759145069576,12.1156,207.02,206.94,7.57]
[1759145070365,4.3458,207.01,206.94,7.57]
[1759145071380,4.3458,207.01,206.94,11.9171]
[1759145071669,4.3458,207.01,206.95,1.3142483]
[1759145072074,4.3458,207.01,206.95,8.8842483]
[1759145072272,4.346,207.0,206.95,7.57]
[1759145072470,7.73,206.99,206.93,9.70559009]
[1759145072671,7.73,206.99,206.94,7.57]
[1759145072865,4.346,207.0,206.93,9.70559009]
[1759145073072,4.346,207.0,206.94,7.57]
[1759145073277,7.73,206.98,206.94,7.57]
[1759145073877,12.0766,206.97,206.92,11.61404179]
[1759145074177,12.0766,206.97,206.93,7.57]
[1759145076185,7.73,206.97,206.92,4.04404179]
[1759145076387,7.73,206.97,206.93,7.57]
[1759145076676,4.3461,206.99,206.93,7.57]
[1759145077376,4.3461,206.99,206.93,11.61404179]
[1759145079487,12.0761,206.99,206.95,7.57]
[1759145080475,7.73,206.99,206.95,7.57]
[1759145080679,7.73,206.99,206.94,4.04404179]
[1759145081179,7.73,206.99,206.95,7.57]
[1759145081375,7.73,206.99,206.95,11.61404179]
[1759145081575,7.73,206.99,206.96,7.57]
[1759145081777,7.73,207.02,206.95,15.96104179]
[1759145081983,7.73,207.1,206.96,4.04404179]
[1759145082174,1.3142483,207.05,206.99,4.04404179]
[1759145082883,5.6592483,207.05,206.99,4.04404179]
[1759145083083,7.73,207.06,207.01,4.04404179]
[1759145083382,7.73,207.06,207.03,11.61404179]
[1759145083582,7.73,207.06,207.02,4.04404179]
[1759145083788,7.73,207.08,207.02,4.04404179]
[1759145084382,7.73,207.06,207.02,11.61404179]
[1759145084682,7.73,207.06,207.03,4.04404179]
[1759145085890,7.73,207.06,207.03,11.61404179]
[1759145087089,12.074,207.1,207.03,4.04404179]
[1759145087390,9.0442483,207.1,207.04,4.04404179]
[1759145087896,4.3441,207.09,207.04,4.04404179]
[1759145088081,1.3142483,207.1,207.06,7.57]
[1759145088386,7.73,207.1,207.06,7.57]
[1759145088689,7.73,207.1,207.07,7.57]
[1759145088990,7.73,207.13,207.07,7.57]
[1759145090085,12.0735,207.12,207.07,7.57]
[1759145090285,12.0735,207.12,207.06,11.61404179]
[1759145090587,7.73,207.12,207.06,11.61404179]
[1759145090785,7.73,207.2,207.07,8.8842483]
[1759145090983,9.0442483,207.17,207.1,4.04404179]
[1759145091188,9.0442483,207.17,207.1,11.61404179]
[1759145091393,7.73,207.17,207.1,11.61404179]
[1759145091687,12.0724,207.17,207.1,11.61404179]
[1759145093287,12.0724,207.17,207.1,7.57]
[1759145093688,12.0724,207.17,207.1,11.61404179]
[1759145094289,12.0724,207.17,207.1,7.57]
[1759145097504,7.73,207.17,207.1,7.57]
[1759145097803,1.3142483,207.13,207.05,4.04404179]
[1759145097996,4.344,207.1,207.04,5.35829009]
[1759145098399,4.344,207.1,207.04,1.3142483]
[1759145099102,4.344,207.1,207.03,128.24846493]
[1759145099299,7.63,207.1,207.03,128.24846493]
[1759145099504,7.63,207.1,207.04,7.69]
[1759145099805,7.63,207.1,207.04,9.0042483]
[1759145100502,7.63,207.1,207.04,7.69]
[1759145100901,1.3142483,207.13,207.04,9.0042483]
[1759145101101,5.6570483,207.15,207.07,7.69]
[1759145102000,4.3432,207.14,207.07,7.69]
[1759145102200,8.9442483,207.15,207.07,7.69]
[1759145103609,4.3433,207.13,207.07,7.69]
[1759145104300,8.9442483,207.15,207.07,7.69]
[1759145105110,4.3431,207.14,207.07,7.69]
[1759145106306,8.9442483,207.15,207.07,5.6585483]
[1759145106512,7.63,207.15,207.08,7.69]
[1759145107609,8.9442483,207.18,207.1,7.69]
[1759145107809,7.63,207.15,207.08,4.03617899]
[1759145108009,7.63,207.15,207.07,5.35042729]
[1759145108811,4.3431,207.14,207.08,7.69]
[1759145109008,7.63,207.15,207.08,7.69]
[1759145109203,11.9729,207.15,207.08,12.0341]
[1759145109709,4.3429,207.15,207.1,7.69]
[1759145110016,11.9729,207.15,207.09,9.0042483]
[1759145110214,7.63,207.15,207.09,13.3481483]
[1759145110409,5.6566483,207.17,207.1,7.69]
[1759145110809,4.3424,207.17,207.1,7.69]
[1759145111310,8.9442483,207.19,207.11,5.6577483]
[1759145111311,7.63,207.19,207.11,5.6577483]
[1759145111615,7.63,207.19,207.12,7.69]
[1759145112714,4.3423,207.18,207.12,12.0333]
[1759145112914,7.63,207.19,207.13,1.3142483]
[1759145113908,0.28834,207.21,207.15,1.3142483]
[1759145114110,0.28834,207.21,207.16,7.65]
[1759145114311,0.28834,207.21,207.18,7.65]
[1759145114512,0.28834,207.21,207.17,1.3142483]
[1759145114716,0.28834,207.21,207.18,7.65]
[1759145115215,8.21834,207.21,207.13,7.65]
[1759145115409,8.21834,207.21,207.15,1.3142483]
[1759145115612,8.21834,207.21,207.13,8.9642483]
[1759145116015,12.55994,207.21,207.13,8.9642483]
[1759145116411,8.21834,207.21,207.13,7.65]
[1759145116612,8.21834,207.21,207.13,8.9642483]
[1759145116818,8.21834,207.21,207.13,7.65]
[1759145117118,8.21834,207.21,207.18,7.65]
[1759145117514,0.28834,207.21,207.18,7.65]
[1759145118019,0.28834,207.21,207.14,4.03617899]
[1759145118020,0.28834,207.21,207.2,7.65]
[1759145119714,7.93,207.27,207.2,7.65]
[1759145119910,7.93,207.27,207.23,7.65]
[1759145120824,7.93,207.27,207.19,4.3417]
[1759145120825,7.93,207.28,207.2,1.3142483]
[1759145121019,7.93,207.26,207.18,1.3142483]
[1759145121316,4.3411,207.24,207.18,1.3142483]
[1759145121718,4.3411,207.24,207.18,8.9642483]
[1759145122523,12.2705,207.26,207.18,8.9642483]
[1759145124423,12.2705,207.26,207.2,1.3142483]
[1759145124921,4.3408,207.25,207.2,1.3142483]
[1759145125422,7.85,207.24,207.2,9.4142483]
[1759145126125,4.3408,207.25,207.2,9.4142483]
[1759145126316,12.1911,207.24,207.19,1.3142483]
[1759145126524,4.3411,207.24,207.19,1.3142483]
[1759145126720,7.85,207.23,207.17,9.4142483]
[1759145128225,7.85,207.23,207.17,8.1]
[1759145129819,7.85,207.23,207.17,12.13617899]
[1759145131623,7.85,207.23,207.19,8.1]
[1759145131824,7.85,207.23,207.18,4.342]
[1759145132023,7.85,207.23,207.19,8.1]
[1759145132224,4.3408,207.25,207.19,8.1]
[1759145132526,7.85,207.28,207.19,8.1]
[1759145132722,7.85,207.28,207.17,4.03617899]
[1759145133429,7.85,207.28,207.18,4.03617899]
[1759145133731,7.85,207.23,207.16,16.47867899]
[1759145134130,12.1912,207.23,207.16,16.47867899]
[1759145135530,67.5195,207.26,207.16,4.03617899]
[1759145135831,7.85,207.25,207.15,4.03617899]
[1759145136032,4.3416,207.21,207.15,4.03617899]
[1759145136534,7.85,207.21,207.15,12.13617899]
[1759145139232,75.376,207.24,207.13,4.03617899]
[1759145139735,7.85,207.22,207.13,4.03617899]
[1759145140128,7.85,207.22,207.12,4.03617899]
[1759145140333,7.85,207.2,207.13,12.13617899]
[1759145142536,7.85,207.2,207.14,8.1]
[1759145143139,7.85,207.27,207.14,8.1]
[1759145143334,126.27,207.27,207.18,8.1]
[1759145143936,126.27,207.27,207.17,4.03617899]
[1759145144137,126.27,207.27,207.16,4.03617899]
[1759145145333,75.3725,207.25,207.16,4.03617899]
[1759145145534,7.85,207.23,207.15,4.03617899]
[1759145146143,12.1919,207.2,207.16,8.1]
[1759145146336,12.1919,207.2,207.16,12.13617899]
[1759145146541,7.85,207.19,207.16,12.13617899]
[1759145146744,7.85,207.18,207.16,4.03617899]
[1759145147041,7.85,207.21,207.14,4.03617899]
[1759145147244,7.85,207.19,207.12,4.03617899]
[1759145147448,4.3427,207.16,207.12,4.03617899]
[1759145147737,7.85,207.19,207.11,4.03617899]
[1759145148045,7.85,207.13,207.11,4.03617899]
[1759145148340,7.85,207.13,207.1,4.03617899]
[1759145150340,4.3426,207.16,207.1,12.13617899]
[1759145150649,7.85,207.15,207.11,4.03617899]
[1759145150845,7.85,207.19,207.11,4.03617899]
[1759145151446,7.85,207.14,207.11,4.03617899]
[1759145152646,7.85,207.14,207.11,12.13617899]
[1759145152845,12.1921,207.18,207.12,4.03617899]
[1759145153340,7.85,207.18,207.12,4.03617899]
[1759145153544,4.3418,207.2,207.14,4.03617899]
[1759145154043,11.9118,207.2,207.15,12.13617899]
[1759145154249,7.57,207.19,207.15,12.13617899]
[1759145154547,7.57,207.19,207.15,8.1]
[1759145155042,7.57,207.18,207.15,8.1]
[1759145156948,7.57,207.18,207.15,12.13617899]
[1759145159448,4.3421,207.19,207.15,12.13617899]
[1759145159651,11.9121,207.19,207.15,12.13617899]
[1759145159848,4.3422,207.18,207.15,4.03617899]
[1759145160053,7.57,207.21,207.14,4.03617899]
[1759145160254,125.99,207.21,207.14,4.03617899]
[1759145160441,4.3422,207.18,207.14,4.03617899]
[1759145160648,11.9122,207.18,207.14,12.13617899]
[1759145161344,7.57,207.2,207.13,4.03617899]
[1759145162056,7.57,207.17,207.13,4.03617899]
[1759145162353,7.57,207.17,207.13,12.13617899]
[1759145163049,125.99,207.21,207.14,12.13617899]
[1759145163553,4.3422,207.18,207.14,12.13617899]
[1759145163751,4.3422,207.18,207.15,12.13617899]
[1759145167654,11.9125,207.17,207.14,12.13617899]
[1759145170649,4.3425,207.17,207.15,8.1]
[1759145170844,4.342,207.19,207.15,8.1]
[1759145171049,125.99,207.22,207.16,4.03617899]
[1759145172254,4.342,207.19,207.16,12.13617899]
[1759145172454,11.912,207.19,207.16,12.13617899]
[1759145172659,118.42,207.22,207.18,4.03617899]
[1759145172853,7.57,207.23,207.19,8.1]
[1759145173163,7.57,207.23,207.18,4.03617899]
[1759145173946,7.57,207.23,207.19,8.11]
[1759145174147,7.76,207.29,207.2,8.11]
[1759145174348,7.76,207.29,207.22,4.03617899]
[1759145174553,118.4,207.28,207.22,4.03617899]
[1759145175055,4.34,207.29,207.26,8.11]
[1759145175359,7.76,207.28,207.24,12.14617899]
[1759145175754,7.76,207.28,207.25,8.11]
[1759145176057,4.34,207.29,207.25,8.11]
[1759145176255,4.34,207.29,207.26,8.11]
[1759145176651,4.34,207.29,207.25,4.03617899]
[1759145176861,7.76,207.28,207.25,4.03617899]
[1759145177153,7.76,207.27,207.24,4.03617899]
[1759145178553,12.1004,207.27,207.24,4.03617899]
[1759145178750,12.1004,207.27,207.24,12.14617899]
[1759145179156,12.1004,207.27,207.24,8.11]
[1759145180558,7.76,207.28,207.24,8.11]
[1759145183060,7.76,207.27,207.23,4.03617899]
[1759145183359,7.76,207.27,207.22,4.03617899]
[1759145184052,7.76,207.27,207.23,7.31]
[1759145184453,7.76,207.27,207.22,4.03617899]
[1759145184961,7.76,207.27,207.23,7.31]
[1759145185456,7.76,207.27,207.22,4.03617899]
[1759145185760,4.3403,207.28,207.22,11.34617899]
[1759145185956,7.71,207.3,207.23,7.31]
[1759145185957,4.3405,207.27,207.23,7.31]
[1759145186154,4.3405,207.27,207.22,4.03617899]
[1759145186458,12.0505,207.27,207.23,7.31]
[1759145186954,118.4,207.32,207.21,4.03617899]
[1759145186955,67.5099,207.29,207.21,4.03617899]
[1759145187157,7.71,207.27,207.19,4.03617899]
[1759145187461,7.71,207.25,207.17,4.03617899]
[1759145187660,118.34,207.26,207.17,4.03617899]
[1759145187661,7.71,207.2,207.17,4.03617899]
[1759145187959,7.71,207.2,207.16,4.03617899]
[1759145188166,7.71,207.2,207.16,11.34617899]
[1759145188357,7.71,207.2,207.16,4.03617899]
[1759145188555,7.71,207.2,207.17,7.31]
[1759145189360,4.3412,207.23,207.16,7.31]
[1759145190460,4.3414,207.22,207.16,7.31]
[1759145191666,7.71,207.23,207.16,7.31]
[1759145193265,7.71,207.23,207.16,11.34617899]
[1759145193762,12.0512,207.23,207.16,11.34617899]
[1759145195465,4.3414,207.22,207.16,11.34617899]
[1759145195668,7.71,207.23,207.16,11.34617899]
[1759145195861,12.0516,207.21,207.16,11.34617899]
[1759145196062,12.0516,207.21,207.17,7.31]
[1759145196660,4.3419,207.2,207.15,4.03617899]
[1759145196866,1.31151669,207.2,207.15,4.03617899]
[1759145197260,7.71,207.19,207.15,4.03617899]
[1759145197466,7.71,207.19,207.15,11.34617899]
[1759145198173,12.0521,207.19,207.15,11.34617899]
[1759145199373,7.71,207.19,207.15,11.34617899]
[1759145199667,9.02151669,207.2,207.15,4.03617899]
[1759145199872,9.02151669,207.2,207.16,7.31]
[1759145200466,9.02151669,207.2,207.15,4.03617899]
[1759145200672,9.02151669,207.2,207.16,7.31]
[1759145201969,9.02151669,207.2,207.16,11.34617899]
[1759145202166,1.31151669,207.2,207.16,11.34617899]
[1759145202366,7.71,207.19,207.16,11.34617899]
[1759145202572,12.052,207.19,207.16,11.34617899]
[1759145204973,12.052,207.19,207.16,7.31]
[1759145205974,118.34,207.23,207.16,7.31]
[1759145206279,1.31151669,207.22,207.16,11.34617899]
[1759145207578,12.0519,207.2,207.16,11.34617899]
[1759145207880,7.71,207.2,207.16,11.34617899]
[1759145208576,1.31151669,207.22,207.16,4.03617899]
[1759145208781,7.71,207.19,207.16,4.03617899]
[1759145209083,4.3416,207.21,207.16,4.03617899]
[1759145209381,119.65151669,207.23,207.17,4.03617899]
[1759145209781,4.3419,207.2,207.16,11.34617899]
[1759145209985,1.31151669,207.21,207.16,4.03617899]
[1759145210178,7.71,207.18,207.15,4.03617899]
[1759145210378,4.3425,207.17,207.15,4.03617899]
[1759145210776,4.3425,207.17,207.14,11.34617899]
[1759145211684,12.0519,207.2,207.14,4.03617899]
[1759145211876,12.0519,207.2,207.16,7.31]
[1759145212076,7.71,207.2,207.16,7.31]
[1759145213280,7.71,207.18,207.15,4.03617899]
[1759145213478,1.31151669,207.19,207.13,4.03617899]
[1759145213673,9.02151669,207.19,207.13,4.03617899]
[1759145214382,4.3427,207.16,207.13,4.03617899]
[1759145214577,11.8627,207.16,207.13,4.03617899]
[1759145214781,1.31151669,207.17,207.13,4.03617899]
[1759145214982,4.3429,207.15,207.13,4.03617899]
[1759145215183,7.52,207.14,207.11,4.03617899]
[1759145215482,7.52,207.14,207.1,12.13617899]
[1759145215986,7.52,207.14,207.1,4.03617899]
[1759145216183,1.31151669,207.15,207.09,4.03617899]
[1759145216380,7.52,207.14,207.09,4.03617899]
[1759145216684,119.65151669,207.15,207.09,4.03617899]
[1759145216882,7.52,207.14,207.09,4.03617899]
[1759145217087,119.65151669,207.15,207.09,4.03617899]
[1759145217386,11.8635,207.12,207.09,4.03617899]
[1759145217580,7.52,207.11,207.09,4.03617899]
[1759145217980,7.52,207.13,207.09,4.03617899]
[1759145218283,1.31151669,207.12,207.07,4.03681049]
[1759145218486,7.52,207.11,207.06,4.03681049]
[1759145218787,8.83151669,207.12,207.06,4.03681049]
[1759145219481,1.31151669,207.1,207.06,4.03681049]
[1759145219682,1.31151669,207.1,207.05,4.03681049]
[1759145219987,7.52,207.09,207.02,4.03681049]
[1759145220187,4.3448,207.06,207.03,8.1]
[1759145220487,11.8648,207.06,207.03,8.1]
[1759145220687,7.52,207.04,207.01,4.03681049]
[1759145220884,127.17151669,207.13,207.03,12.13681049]
[1759145221275,127.17151669,207.13,207.04,4.03681049]
[1759145221481,4.3438,207.11,207.04,4.03681049]
[1759145221680,11.8638,207.11,207.04,4.03681049]
[1759145222579,4.344,207.1,207.04,4.03681049]
[1759145222784,8.83151669,207.11,207.03,12.13681049]
[1759145223185,4.3438,207.1,207.03,12.13681049]
[1759145223786,4.3438,207.1,207.04,4.03681049]
[1759145224283,7.52,207.11,207.05,8.1]
[1759145224485,125.86,207.11,207.05,12.13681049]
[1759145225883,125.86,207.11,207.05,8.1]
[1759145226088,127.17151669,207.11,207.05,8.1]
[1759145227684,7.52,207.09,207.05,8.1]
[1759145228288,11.8642,207.09,207.03,4.03025909]
[1759145228988,11.8644,207.08,207.04,8.1]
[1759145229687,7.52,207.07,207.04,8.1]
[1759145230285,7.52,207.07,207.02,4.03025909]
[1759145230484,7.52,207.07,207.0,6.73561736]
[1759145230485,1.31151669,207.07,207.01,4.03025909]
[1759145230689,7.52,207.06,207.0,4.03025909]
[1759145230892,67.5782,207.08,207.0,4.03025909]
[1759145230893,119.65151669,207.05,207.0,4.03025909]
[1759145231099,7.52,207.04,206.99,4.03025909]
[1759145231385,119.65151669,207.05,206.99,4.03025909]
[1759145231584,4.3455,207.03,206.99,4.03025909]
[1759145231786,125.86,207.07,207.01,4.03025909]
[1759145232093,125.86,207.07,207.01,12.13025909]
[1759145233199,118.34,207.07,207.01,13.44177578]
[1759145234394,4.3441,207.09,207.03,1.31151669]
[1759145234590,7.86,207.1,207.05,7.7]
[1759145234790,118.36,207.13,207.06,7.7]
[1759145235593,7.86,207.11,207.05,5.34177578]
[1759145236391,4.3439,207.1,207.06,7.7]
[1759145236591,7.86,207.12,207.05,4.03025909]
[1759145237390,4.3437,207.11,207.05,4.03025909]
[1759145237586,7.86,207.12,207.05,4.03025909]
[1759145238297,12.2039,207.1,207.05,11.73025909]
[1759145238698,12.2039,207.1,207.06,7.7]
[1759145239992,7.86,207.09,207.05,4.03025909]
[1759145240488,7.86,207.09,207.05,11.73025909]
[1759145242202,7.86,207.09,207.06,7.7]
[1759145246202,7.86,207.09,207.06,11.73025909]
[1759145247288,68.88101669,207.11,207.06,4.03025909]
[1759145247494,1.31151669,207.07,207.03,4.03025909]
[1759145247697,118.34,207.06,207.02,4.03025909]
[1759145247892,7.48,207.05,207.02,4.03025909]
[1759145248201,7.48,207.03,207.02,4.03025909]
[1759145248398,1.31151669,207.05,207.01,4.03025909]
[1759145248595,7.48,207.04,207.01,4.03025909]
[1759145248800,11.8254,207.03,207.01,4.03025909]
[1759145249398,11.8254,207.03,207.0,4.03025909]
[1759145251397,118.34,207.03,206.99,4.03025909]
[1759145251600,118.34,207.03,207.0,8.06]
[1759145252002,118.34,207.04,206.99,4.03025909]
[1759145252202,118.34,207.04,207.0,8.06]
[1759145253201,118.34,207.04,207.0,12.09025909]
[1759145253403,130.1652,207.04,207.0,12.09025909]
[1759145255499,4.3453,207.03,207.0,4.03025909]
[1759145255997,7.48,207.03,207.0,4.03025909]
[1759145256195,118.34,207.04,207.0,4.03025909]
[1759145256600,7.48,207.03,207.0,4.03025909]
[1759145257300,7.48,207.03,207.01,4.03025909]
[1759145257894,118.34,207.04,207.01,4.03025909]
[1759145258108,118.34,207.05,207.03,4.03025909]
[1759145258298,125.82,207.05,207.03,4.03025909]
[1759145259401,118.34,207.06,207.03,13.48410067]
[1759145259600,118.34,207.06,207.05,4.04618796]
[1759145260205,118.34,207.06,207.03,13.48410067]
[1759145264110,125.82,207.06,207.03,13.48410067]
[1759145264615,11.8238,207.1,207.04,8.06]
[1759145264903,11.8238,207.1,207.07,4.04839766]
[1759145264904,118.32,207.09,207.07,4.04839766]
[1759145265413,125.8,207.09,207.07,4.04839766]
[1759145265599,7.48,207.08,207.07,4.04839766]
[1759145270907,118.32,207.09,207.01,4.3456]
[1759145270908,122.664,207.09,207.06,4.04839766]
[1759145271107,7.48,207.08,207.06,4.04839766]
[1759145271505,122.664,207.09,207.06,4.04839766]
[1759145272308,7.48,207.08,207.06,4.04839766]
[1759145272704,122.664,207.09,207.06,4.04839766]
[1759145273103,7.48,207.08,207.06,4.04839766]
[1759145273706,122.664,207.09,207.06,4.04839766]
[1759145274213,7.5,207.08,207.06,4.04839766]
[1759145274711,122.664,207.09,207.06,4.04839766]
[1759145275207,7.5,207.08,207.06,4.04839766]
[1759145275408,122.664,207.09,207.06,4.04839766]
[1759145276112,7.5,207.08,207.06,4.04839766]
[1759145276413,122.664,207.09,207.06,4.04839766]
[1759145276606,7.5,207.08,207.06,4.04839766]
[1759145277204,122.664,207.09,207.06,4.04839766]
[1759145278113,7.5,207.08,207.06,4.04839766]
[1759145278312,122.664,207.09,207.06,4.04839766]